[Event "*** Titled Tuesday Blitz"]
[Site "Chess.com"]
[Date "2020.04.07"]
[Round "2"]
[White "SPEEDSKATER"]
[Black "StoreySniper"]
[Result "1-0"]
[WhiteElo "2788"]
[BlackElo "2524"]
[TimeControl "180+1"]
[EndTime "13:20:46 PDT"]
[Termination "SPEEDSKATER won by resignation"]

1. d4 {[%clk 0:03:00.9]} 1... g6 {[%clk 0:02:58.6]} 2. c4 {[%clk 0:02:59.9]}
2... Bg7 {[%clk 0:02:59]} 3. Nf3 {[%clk 0:02:56.5]} 3... c5 {[%clk 0:02:59.4]}
4. d5 {[%clk 0:02:55.8]} 4... d6 {[%clk 0:02:59.3]} 5. e4 {[%clk 0:02:53.8]}
5... Nf6 {[%clk 0:02:59.7]} 6. Nc3 {[%clk 0:02:53.3]} 6... Na6 {[%clk
0:03:00.1]} 7. h3 {[%clk 0:02:51.8]} 7... Nc7 {[%clk 0:02:59.8]} 8. Bd3 {[%clk
0:02:48.9]} 8... a6 {[%clk 0:02:59.6]} 9. a4 {[%clk 0:02:48.2]} 9... Rb8 {[%clk
0:02:59.5]} 10. O-O {[%clk 0:02:47.1]} 10... O-O {[%clk 0:02:58.7]} 11. Bf4
{[%clk 0:02:36.4]} 11... Nd7 {[%clk 0:02:58.4]} 12. Re1 {[%clk 0:02:32.7]} 12...
f6 {[%clk 0:02:58.1]} 13. Qd2 {[%clk 0:02:23.9]} 13... Ne5 {[%clk 0:02:56.7]}
14. Be2 {[%clk 0:02:23.5]} 14... Bd7 {[%clk 0:02:52.6]} 15. a5 {[%clk 0:02:23]}
15... b5 {[%clk 0:02:52.1]} 16. axb6 {[%clk 0:02:23.1]} 16... Rxb6 {[%clk
0:02:52.3]} 17. Nxe5 {[%clk 0:02:23.2]} 17... fxe5 {[%clk 0:02:47.8]} 18. Be3
{[%clk 0:02:23.1]} 18... Qb8 {[%clk 0:02:28.4]} 19. Ra2 {[%clk 0:02:21.9]} 19...
Qb7 {[%clk 0:02:27.5]} 20. Rea1 {[%clk 0:02:05.3]} 20... e6 {[%clk 0:02:18.5]}
21. dxe6 {[%clk 0:01:34.9]} 21... Bxe6 {[%clk 0:02:17.6]} 22. Nd5 {[%clk
0:01:34.6]} 22... Bxd5 {[%clk 0:02:13.9]} 23. cxd5 {[%clk 0:01:35.5]} 23... Rb8
{[%clk 0:02:11.6]} 24. b4 {[%clk 0:01:31.6]} 24... Rxb4 {[%clk 0:02:09.3]} 25.
Bxa6 {[%clk 0:01:31]} 25... Nxa6 {[%clk 0:01:53.5]} 26. Rxa6 {[%clk 0:01:30.6]}
26... Rb1+ {[%clk 0:01:46.2]} 27. Rxb1 {[%clk 0:01:21.9]} 27... Qxb1+ {[%clk
0:01:45.7]} 28. Kh2 {[%clk 0:01:22.2]} 28... Qxe4 {[%clk 0:01:39.1]} 29. Rxd6
{[%clk 0:01:21.3]} 29... Qf5 {[%clk 0:01:30.9]} 30. Qa5 {[%clk 0:01:14.5]} 30...
e4 {[%clk 0:01:27.8]} 31. Rd8+ {[%clk 0:01:13.8]} 31... Rxd8 {[%clk 0:01:16.5]}
32. Qxd8+ {[%clk 0:01:13.3]} 32... Bf8 {[%clk 0:01:15.5]} 33. g4 {[%clk
0:00:50]} 33... Qe5+ {[%clk 0:01:12.1]} 34. Kg2 {[%clk 0:00:49.9]} 34... Qd6
{[%clk 0:01:10.3]} 35. Qa8 {[%clk 0:00:45.4]} 35... Kf7 {[%clk 0:01:06.1]} 36.
Qb7+ {[%clk 0:00:43.4]} 36... Kf6 {[%clk 0:00:59]} 37. Qb2+ {[%clk 0:00:42.9]}
37... Kf7 {[%clk 0:00:57.9]} 38. Qb3 {[%clk 0:00:42.2]} 38... Be7 {[%clk
0:00:53.3]} 39. Qc4 {[%clk 0:00:41.4]} 39... Ke8 {[%clk 0:00:32.5]} 40. Qxe4
{[%clk 0:00:41.1]} 40... Kd7 {[%clk 0:00:31.7]} 41. Qa4+ {[%clk 0:00:40.2]}
41... Kd8 {[%clk 0:00:27.5]} 42. Qe4 {[%clk 0:00:37.9]} 42... Kd7 {[%clk
0:00:27.2]} 43. f4 {[%clk 0:00:35.5]} 43... Qa6 {[%clk 0:00:26.5]} 44. f5 {[%clk
0:00:33.5]} 44... Qe2+ {[%clk 0:00:26]} 45. Kg3 {[%clk 0:00:26.9]} 45... Bd6+
{[%clk 0:00:17.3]} 46. Kh4 {[%clk 0:00:24.2]} 46... Be7+ {[%clk 0:00:13.8]} 47.
g5 {[%clk 0:00:20.1]} 47... Bxg5+ {[%clk 0:00:12]} 48. Kxg5 {[%clk 0:00:18.5]}
48... Qh5+ {[%clk 0:00:12.2]} 49. Kf6 {[%clk 0:00:18.3]} 49... Qxf5+ {[%clk
0:00:10.3]} 50. Qxf5+ {[%clk 0:00:17.4]} 50... gxf5 {[%clk 0:00:11.2]} 51. Kxf5
{[%clk 0:00:16.5]} 51... Kd6 {[%clk 0:00:11.8]} 52. Kf6 {[%clk 0:00:16.6]} 52...
Kxd5 {[%clk 0:00:11.1]} 53. Kg7 {[%clk 0:00:16.6]} 53... c4 {[%clk 0:00:11.5]}
54. Kxh7 {[%clk 0:00:16.7]} 54... Ke4 {[%clk 0:00:12.1]} 55. Bg5 {[%clk
0:00:12.8]} 55... Kf5 {[%clk 0:00:09.5]} 56. h4 {[%clk 0:00:11.5]} 56... c3
{[%clk 0:00:09.7]} 57. Kh6 {[%clk 0:00:11.7]} 57... c2 {[%clk 0:00:09.7]} 58. h5
{[%clk 0:00:11.8]} 58... Ke6 {[%clk 0:00:09.1]} 59. Bc1 {[%clk 0:00:12.2]} 59...
Kf7 {[%clk 0:00:09]} 60. Kh7 {[%clk 0:00:12.7]} 60... Kf8 {[%clk 0:00:09]} 61.
Kg6 {[%clk 0:00:12.6]} 61... Kg8 {[%clk 0:00:09.1]} 62. h6 {[%clk 0:00:13.1]}
62... Kh8 {[%clk 0:00:08.2]} 63. Bb2+ {[%clk 0:00:13.5]} 63... Kg8 {[%clk
0:00:09.1]} 64. h7+ {[%clk 0:00:14.4]} 1-0

[Event "*** Titled Tuesday Blitz"]
[Site "Chess.com"]
[Date "2020.04.07"]
[Round "2"]
[White "Jadeit90"]
[Black "DerSchachaffe"]
[Result "0-1"]
[WhiteElo "2234"]
[BlackElo "2474"]
[TimeControl "180+1"]
[EndTime "13:20:46 PDT"]
[Termination "DerSchachaffe won by resignation"]

1. g3 {[%clk 0:03:00.9]} 1... d5 {[%clk 0:02:52.9]} 2. Bg2 {[%clk 0:02:57.4]}
2... Nf6 {[%clk 0:02:53.2]} 3. c4 {[%clk 0:02:57.6]} 3... dxc4 {[%clk
0:02:49.5]} 4. Qa4+ {[%clk 0:02:57.1]} 4... Nfd7 {[%clk 0:02:46.2]} 5. Qxc4
{[%clk 0:02:57.1]} 5... g6 {[%clk 0:02:46.2]} 6. Nf3 {[%clk 0:02:56.9]} 6... Bg7
{[%clk 0:02:46.2]} 7. h4 {[%clk 0:02:56.7]} 7... Nb6 {[%clk 0:02:39.9]} 8. Qc2
{[%clk 0:02:56.1]} 8... h6 {[%clk 0:02:38.8]} 9. d3 {[%clk 0:02:54.6]} 9... Nc6
{[%clk 0:02:38.7]} 10. Nc3 {[%clk 0:02:54.8]} 10... Bg4 {[%clk 0:02:35]} 11. Be3
{[%clk 0:02:52.5]} 11... O-O {[%clk 0:02:31]} 12. Qd2 {[%clk 0:02:51]} 12... h5
{[%clk 0:02:24.1]} 13. O-O {[%clk 0:02:48.5]} 13... Rb8 {[%clk 0:02:17.3]} 14.
Rac1 {[%clk 0:02:47.2]} 14... e5 {[%clk 0:02:01.7]} 15. Rfd1 {[%clk 0:02:47.1]}
15... Nd4 {[%clk 0:02:00.7]} 16. Bxd4 {[%clk 0:02:43.8]} 16... exd4 {[%clk
0:02:00.4]} 17. Ne4 {[%clk 0:02:44.1]} 17... Nd5 {[%clk 0:01:36.6]} 18. Qa5
{[%clk 0:02:37.7]} 18... b6 {[%clk 0:01:30.7]} 19. Qd2 {[%clk 0:02:08.2]} 19...
c5 {[%clk 0:01:29.6]} 20. Neg5 {[%clk 0:02:02.5]} 20... Qd6 {[%clk 0:01:26]} 21.
a3 {[%clk 0:02:00.8]} 21... Rfe8 {[%clk 0:01:25.1]} 22. Re1 {[%clk 0:01:59.7]}
22... Re7 {[%clk 0:01:22.6]} 23. Rb1 {[%clk 0:01:54.3]} 23... Rbe8 {[%clk
0:01:18.3]} 24. Kf1 {[%clk 0:01:45.5]} 24... a5 {[%clk 0:01:12.1]} 25. Ne4
{[%clk 0:01:43.7]} 25... Qd7 {[%clk 0:01:07.9]} 26. Qc2 {[%clk 0:01:36.9]} 26...
Kh7 {[%clk 0:00:53.8]} 27. Neg5+ {[%clk 0:01:35.8]} 27... Kg8 {[%clk 0:00:53.7]}
28. Ne4 {[%clk 0:01:36]} 28... Bh6 {[%clk 0:00:46.3]} 29. Neg5 {[%clk
0:01:33.6]} 29... f6 {[%clk 0:00:44.3]} 30. Ne4 {[%clk 0:01:33.2]} 30... Kg7
{[%clk 0:00:43]} 31. Nh2 {[%clk 0:01:12.9]} 31... Bf5 {[%clk 0:00:38.8]} 32. Qc4
{[%clk 0:01:06.5]} 32... Be6 {[%clk 0:00:34.7]} 33. Qc2 {[%clk 0:01:06.3]} 33...
a4 {[%clk 0:00:32.1]} 34. Ra1 {[%clk 0:00:57.2]} 34... Qc7 {[%clk 0:00:31]} 35.
Nf3 {[%clk 0:00:56.1]} 35... f5 {[%clk 0:00:27.4]} 36. Neg5 {[%clk 0:00:49.6]}
36... Bg8 {[%clk 0:00:20.9]} 37. Qd2 {[%clk 0:00:43]} 37... f4 {[%clk
0:00:19.8]} 38. gxf4 {[%clk 0:00:20.8]} 38... Nxf4 {[%clk 0:00:20.7]} 39. e4
{[%clk 0:00:16.5]} 39... dxe3 {[%clk 0:00:20.5]} 40. fxe3 {[%clk 0:00:16.7]}
40... Nxg2 {[%clk 0:00:19.4]} 41. Kxg2 {[%clk 0:00:17.6]} 41... Bd5 {[%clk
0:00:17.5]} 42. e4 {[%clk 0:00:17.7]} 42... Be6 {[%clk 0:00:15.9]} 43. Qf2
{[%clk 0:00:14.1]} 43... Rf8 {[%clk 0:00:14.4]} 44. Qg3 {[%clk 0:00:14.2]} 44...
Qxg3+ {[%clk 0:00:13.7]} 45. Kxg3 {[%clk 0:00:15.1]} 45... Bb3 {[%clk
0:00:13.7]} 46. Rf1 {[%clk 0:00:13.4]} 46... Rd8 {[%clk 0:00:11.8]} 47. Ne1
{[%clk 0:00:10.9]} 47... Kg8 {[%clk 0:00:10.8]} 48. Rf3 {[%clk 0:00:10.3]} 48...
Bg7 {[%clk 0:00:10]} 49. Rb1 {[%clk 0:00:09.9]} 49... Rd6 {[%clk 0:00:08.2]} 50.
Nh3 {[%clk 0:00:06.6]} 50... Rf6 {[%clk 0:00:08]} 51. Rxf6 {[%clk 0:00:06]}
51... Bxf6 {[%clk 0:00:08.9]} 52. Nf4 {[%clk 0:00:06.9]} 52... Kg7 {[%clk
0:00:08.2]} 53. Nd5 {[%clk 0:00:07.3]} 53... Be5+ {[%clk 0:00:07.9]} 54. Kf3
{[%clk 0:00:07]} 54... Rf7+ {[%clk 0:00:07.9]} 55. Ke2 {[%clk 0:00:07.2]} 55...
Bxd5 {[%clk 0:00:07.3]} 56. exd5 {[%clk 0:00:07.1]} 56... Rd7 {[%clk 0:00:07.9]}
57. Nf3 {[%clk 0:00:07.5]} 57... Bf6 {[%clk 0:00:07.2]} 58. Kd2 {[%clk
0:00:06.8]} 58... Rxd5 {[%clk 0:00:07.1]} 59. Kc2 {[%clk 0:00:07.2]} 59... Rf5
{[%clk 0:00:06.2]} 60. Rf1 {[%clk 0:00:07]} 60... Kf7 {[%clk 0:00:05.5]} 61. Kd2
{[%clk 0:00:06.3]} 61... Ke6 {[%clk 0:00:05.5]} 62. Kc2 {[%clk 0:00:06.6]} 62...
Kd6 {[%clk 0:00:05.4]} 63. Nd2 {[%clk 0:00:05.3]} 63... Rxf1 {[%clk 0:00:04.8]}
64. Nxf1 {[%clk 0:00:06.2]} 64... Bxh4 {[%clk 0:00:05.2]} 65. Ne3 {[%clk
0:00:07.1]} 65... Bf6 {[%clk 0:00:05.4]} 66. Ng2 {[%clk 0:00:07.3]} 66... g5
{[%clk 0:00:05.5]} 0-1

[Event "*** Titled Tuesday Blitz"]
[Site "Chess.com"]
[Date "2020.04.07"]
[Round "2"]
[White "The_Machine04"]
[Black "warmoatmeal"]
[Result "1/2-1/2"]
[WhiteElo "2381"]
[BlackElo "1895"]
[TimeControl "180+1"]
[EndTime "13:20:46 PDT"]
[Termination "Game drawn by repetition"]

1. d4 {[%clk 0:03:00.9]} 1... Nf6 {[%clk 0:02:59.3]} 2. Bg5 {[%clk 0:03:00.9]}
2... d5 {[%clk 0:02:58.5]} 3. Bxf6 {[%clk 0:03:00.1]} 3... exf6 {[%clk
0:02:59.4]} 4. g3 {[%clk 0:02:59.9]} 4... c6 {[%clk 0:02:59.1]} 5. Bg2 {[%clk
0:03:00.2]} 5... f5 {[%clk 0:02:59.1]} 6. e3 {[%clk 0:03:00.2]} 6... Be6 {[%clk
0:02:59.6]} 7. Ne2 {[%clk 0:02:58]} 7... Bd6 {[%clk 0:03:00.1]} 8. Nd2 {[%clk
0:02:56]} 8... Nd7 {[%clk 0:03:00.7]} 9. b3 {[%clk 0:02:56.1]} 9... Nf6 {[%clk
0:03:01.3]} 10. c4 {[%clk 0:02:55.7]} 10... O-O {[%clk 0:03:00.6]} 11. O-O
{[%clk 0:02:55]} 11... g6 {[%clk 0:03:00.3]} 12. Nf4 {[%clk 0:02:50.4]} 12...
Rc8 {[%clk 0:02:57.8]} 13. a4 {[%clk 0:02:46.3]} 13... a5 {[%clk 0:02:55.4]} 14.
c5 {[%clk 0:02:46.3]} 14... Bb8 {[%clk 0:02:54.8]} 15. Nf3 {[%clk 0:02:44.5]}
15... Kg7 {[%clk 0:02:53.9]} 16. Nd3 {[%clk 0:02:41]} 16... Ne4 {[%clk
0:02:50.9]} 17. Nfe5 {[%clk 0:02:40.4]} 17... f6 {[%clk 0:02:49.9]} 18. Nf3
{[%clk 0:02:40.3]} 18... Qe7 {[%clk 0:02:46.6]} 19. Nf4 {[%clk 0:02:38.8]} 19...
g5 {[%clk 0:02:44.2]} 20. Nxe6+ {[%clk 0:02:34.1]} 20... Qxe6 {[%clk 0:02:44.7]}
21. Nd2 {[%clk 0:02:31.4]} 21... Rce8 {[%clk 0:02:38.7]} 22. Qc2 {[%clk
0:02:30.1]} 22... h5 {[%clk 0:02:34.1]} 23. Rae1 {[%clk 0:02:25.7]} 23... Qf7
{[%clk 0:02:28.4]} 24. Nb1 {[%clk 0:02:20.5]} 24... g4 {[%clk 0:02:20.5]} 25. h4
{[%clk 0:02:13.3]} 25... Qg6 {[%clk 0:02:07.5]} 26. Bxe4 {[%clk 0:02:07.7]}
26... fxe4 {[%clk 0:02:07.1]} 27. Nc3 {[%clk 0:02:07.4]} 27... f5 {[%clk
0:02:05.1]} 28. Ne2 {[%clk 0:02:06.9]} 28... Qe6 {[%clk 0:02:02.6]} 29. Qd2
{[%clk 0:01:50.2]} 29... Bc7 {[%clk 0:02:01.3]} 30. Ra1 {[%clk 0:01:49.6]} 30...
Qd7 {[%clk 0:01:59.2]} 31. Rfb1 {[%clk 0:01:49.6]} 31... Ra8 {[%clk 0:01:57]}
32. b4 {[%clk 0:01:44.1]} 32... axb4 {[%clk 0:01:57.1]} 33. Qxb4 {[%clk
0:01:45]} 33... Rfb8 {[%clk 0:01:57.2]} 34. Ra3 {[%clk 0:01:34.8]} 34... Ba5
{[%clk 0:01:54.2]} 35. Qb2 {[%clk 0:01:33.1]} 35... Bc7 {[%clk 0:01:51]} 36. Nc3
{[%clk 0:01:22.2]} 36... Ba5 {[%clk 0:01:43.7]} 37. Ne2 {[%clk 0:01:17.7]} 37...
Bc7 {[%clk 0:01:43.3]} 38. Qa2 {[%clk 0:01:14.8]} 38... Ra5 {[%clk 0:01:34.3]}
39. Rab3 {[%clk 0:01:13.9]} 39... Ra7 {[%clk 0:01:28.3]} 40. Qb2 {[%clk
0:01:07]} 40... Ba5 {[%clk 0:01:28]} 41. Nf4 {[%clk 0:01:02.7]} 41... Kh6 {[%clk
0:01:28.5]} 42. Kg2 {[%clk 0:00:51.2]} 42... Qe7 {[%clk 0:01:22.9]} 43. Ne2
{[%clk 0:00:45.7]} 43... Qd7 {[%clk 0:01:22.1]} 44. Qc2 {[%clk 0:00:43.4]} 44...
Bd8 {[%clk 0:01:18.3]} 45. Nc3 {[%clk 0:00:40.5]} 45... Ba5 {[%clk 0:01:17.9]}
46. Na2 {[%clk 0:00:32]} 46... Bd8 {[%clk 0:01:16.3]} 47. R3b2 {[%clk
0:00:31.2]} 47... Ba5 {[%clk 0:01:14.3]} 48. Nc1 {[%clk 0:00:29.2]} 48... Kg6
{[%clk 0:01:10.8]} 49. Nb3 {[%clk 0:00:27.9]} 49... Bd8 {[%clk 0:01:06.8]} 50.
Nd2 {[%clk 0:00:23.1]} 50... Rba8 {[%clk 0:01:00.8]} 51. Qb3 {[%clk 0:00:20.2]}
51... Rb8 {[%clk 0:00:52.4]} 52. Qc2 {[%clk 0:00:19.9]} 52... Ba5 {[%clk
0:00:51.6]} 53. Rb3 {[%clk 0:00:18.8]} 53... Bxd2 {[%clk 0:00:50.1]} 54. Qxd2
{[%clk 0:00:19.7]} 54... Rxa4 {[%clk 0:00:50.3]} 55. Qb2 {[%clk 0:00:19.8]}
55... Ra7 {[%clk 0:00:45.8]} 56. Rb6 {[%clk 0:00:19.7]} 56... Kf6 {[%clk
0:00:40.7]} 57. Ra1 {[%clk 0:00:18.9]} 57... Rxa1 {[%clk 0:00:37.7]} 58. Qxa1
{[%clk 0:00:19.8]} 58... Qc7 {[%clk 0:00:34.8]} 59. Qa7 {[%clk 0:00:18.7]} 59...
Qc8 {[%clk 0:00:17.1]} 60. Rb4 {[%clk 0:00:15.2]} 60... Ke6 {[%clk 0:00:16.8]}
61. Rb6 {[%clk 0:00:13]} 61... Kd7 {[%clk 0:00:16.9]} 62. Rb4 {[%clk 0:00:12.7]}
62... Qc7 {[%clk 0:00:16.8]} 63. Rb6 {[%clk 0:00:11.9]} 63... Kc8 {[%clk
0:00:14.3]} 64. Qa4 {[%clk 0:00:12.1]} 64... Qd7 {[%clk 0:00:11.7]} 65. Qa3
{[%clk 0:00:11.5]} 65... Qc7 {[%clk 0:00:11.6]} 66. Qa2 {[%clk 0:00:11.7]} 66...
Qd7 {[%clk 0:00:11.6]} 67. Rb4 {[%clk 0:00:11.5]} 67... Kc7 {[%clk 0:00:11.1]}
68. Qa5+ {[%clk 0:00:10.7]} 68... Kc8 {[%clk 0:00:11]} 69. Ra4 {[%clk
0:00:10.7]} 69... Qc7 {[%clk 0:00:08.6]} 70. Qb4 {[%clk 0:00:10.9]} 70... Qd7
{[%clk 0:00:08]} 71. Ra7 {[%clk 0:00:10.6]} 71... Qc7 {[%clk 0:00:08.2]} 72. Qa4
{[%clk 0:00:10.4]} 72... Qd7 {[%clk 0:00:08]} 73. Ra8 {[%clk 0:00:08.5]} 73...
Qc7 {[%clk 0:00:06.8]} 74. Ra7 {[%clk 0:00:07.9]} 74... Qd7 {[%clk 0:00:06.6]}
75. Qa1 {[%clk 0:00:07.8]} 75... Qc7 {[%clk 0:00:06.9]} 76. Qa4 {[%clk
0:00:06.7]} 1/2-1/2

[Event "*** Titled Tuesday Blitz"]
[Site "Chess.com"]
[Date "2020.04.07"]
[Round "2"]
[White "MaxVavulin"]
[Black "BillieKimbah"]
[Result "0-1"]
[WhiteElo "2548"]
[BlackElo "2867"]
[TimeControl "180+1"]
[EndTime "13:20:49 PDT"]
[Termination "BillieKimbah won on time"]

1. e4 {[%clk 0:03:00.9]} 1... e5 {[%clk 0:03:00.5]} 2. Nf3 {[%clk 0:03:00.8]}
2... Nc6 {[%clk 0:03:01]} 3. Bb5 {[%clk 0:03:00.7]} 3... a6 {[%clk 0:03:00.8]}
4. Ba4 {[%clk 0:03:01]} 4... Nf6 {[%clk 0:03:01.3]} 5. O-O {[%clk 0:03:01]} 5...
Bc5 {[%clk 0:03:01.4]} 6. Re1 {[%clk 0:02:58.6]} 6... b5 {[%clk 0:03:00.5]} 7.
Bb3 {[%clk 0:02:58.8]} 7... d6 {[%clk 0:03:00.8]} 8. c3 {[%clk 0:02:58]} 8...
O-O {[%clk 0:03:01.1]} 9. d4 {[%clk 0:02:54.6]} 9... Bb6 {[%clk 0:03:01.6]} 10.
a4 {[%clk 0:02:54.7]} 10... Bb7 {[%clk 0:03:00.8]} 11. Bg5 {[%clk 0:02:52.9]}
11... h6 {[%clk 0:02:59.3]} 12. Bh4 {[%clk 0:02:53.1]} 12... exd4 {[%clk
0:02:59.4]} 13. cxd4 {[%clk 0:02:51.4]} 13... g5 {[%clk 0:02:59.8]} 14. Bg3
{[%clk 0:02:39.3]} 14... Re8 {[%clk 0:02:58.9]} 15. Nc3 {[%clk 0:02:37.7]} 15...
Na5 {[%clk 0:02:49.5]} 16. axb5 {[%clk 0:02:08.5]} 16... Nxb3 {[%clk 0:02:44.6]}
17. Qxb3 {[%clk 0:02:07.7]} 17... axb5 {[%clk 0:02:45.2]} 18. Rxa8 {[%clk
0:02:01]} 18... Bxa8 {[%clk 0:02:44.3]} 19. d5 {[%clk 0:01:57.2]} 19... Nh5
{[%clk 0:02:29.3]} 20. Qxb5 {[%clk 0:01:53.7]} 20... Rf8 {[%clk 0:01:21]} 21.
Ra1 {[%clk 0:01:25]} 21... Qf6 {[%clk 0:01:19.8]} 22. e5 {[%clk 0:01:16.9]}
22... dxe5 {[%clk 0:01:14.2]} 23. Bxe5 {[%clk 0:01:16.6]} 23... Qf5 {[%clk
0:01:10.3]} 24. Bd4 {[%clk 0:01:05.5]} 24... Nf4 {[%clk 0:01:07.4]} 25. Bxb6
{[%clk 0:01:01.5]} 25... cxb6 {[%clk 0:01:07.3]} 26. Ne1 {[%clk 0:00:32.5]}
26... Qg4 {[%clk 0:00:53.9]} 27. f3 {[%clk 0:00:25.2]} 27... Qf5 {[%clk
0:00:50.2]} 28. g3 {[%clk 0:00:22.5]} 28... Nxd5 {[%clk 0:00:47]} 29. Rd1 {[%clk
0:00:21.4]} 29... Ne3 {[%clk 0:00:34.7]} 30. Qxf5 {[%clk 0:00:19.8]} 30... Nxf5
{[%clk 0:00:35.2]} 31. Kf2 {[%clk 0:00:19.7]} 31... Re8 {[%clk 0:00:34.3]} 32.
Nc2 {[%clk 0:00:19.1]} 32... Kg7 {[%clk 0:00:33.6]} 33. Rd7 {[%clk 0:00:17.4]}
33... h5 {[%clk 0:00:29.9]} 34. Na3 {[%clk 0:00:14.4]} 34... g4 {[%clk
0:00:29.3]} 35. fxg4 {[%clk 0:00:13.3]} 35... hxg4 {[%clk 0:00:29.7]} 36. Nc4
{[%clk 0:00:12.5]} 36... Rh8 {[%clk 0:00:27.2]} 37. Kg1 {[%clk 0:00:12.1]} 37...
Re8 {[%clk 0:00:27.5]} 38. Kf2 {[%clk 0:00:11.7]} 38... Re6 {[%clk 0:00:27.7]}
39. Ra7 {[%clk 0:00:10.6]} 39... Bf3 {[%clk 0:00:27.1]} 40. Nd2 {[%clk
0:00:10.2]} 40... Bc6 {[%clk 0:00:25.5]} 41. Nc4 {[%clk 0:00:10.4]} 41... Nd4
{[%clk 0:00:24.9]} 42. Nxb6 {[%clk 0:00:08.9]} 42... Rh6 {[%clk 0:00:21.6]} 43.
Ke3 {[%clk 0:00:09]} 43... Nc2+ {[%clk 0:00:18.1]} 44. Kf4 {[%clk 0:00:08.6]}
44... Rxh2 {[%clk 0:00:18.4]} 45. Kxg4 {[%clk 0:00:08.7]} 45... Rf2 {[%clk
0:00:18.8]} 46. Nc4 {[%clk 0:00:07.5]} 46... Nd4 {[%clk 0:00:18.4]} 47. Ne5
{[%clk 0:00:06.8]} 47... Be8 {[%clk 0:00:10.8]} 48. Re7 {[%clk 0:00:06.1]} 48...
Kf8 {[%clk 0:00:10.9]} 49. Rc7 {[%clk 0:00:06.3]} 49... f5+ {[%clk 0:00:10.8]}
50. Kh4 {[%clk 0:00:05.6]} 50... Rh2+ {[%clk 0:00:09.7]} 51. Kg5 {[%clk
0:00:05]} 51... Ne6+ {[%clk 0:00:10.3]} 52. Kxf5 {[%clk 0:00:05.3]} 52... Nxc7
{[%clk 0:00:10.9]} 53. b4 {[%clk 0:00:04.8]} 53... Rf2+ {[%clk 0:00:11]} 54. Ke4
{[%clk 0:00:04.8]} 54... Nb5 {[%clk 0:00:09.9]} 55. Nd5 {[%clk 0:00:04.5]} 55...
Re2+ {[%clk 0:00:10.2]} 56. Kf4 {[%clk 0:00:04.5]} 56... Nd6 {[%clk 0:00:09.1]}
57. Ng4 {[%clk 0:00:04]} 57... Re4+ {[%clk 0:00:09.1]} 58. Kg5 {[%clk
0:00:04.1]} 58... Rd4 {[%clk 0:00:08.2]} 59. Ndf6 {[%clk 0:00:02.5]} 59... Rxb4
{[%clk 0:00:07.6]} 60. Nh7+ {[%clk 0:00:01.4]} 60... Kg7 {[%clk 0:00:07.1]} 61.
Nhf6 {[%clk 0:00:01.2]} 61... Ne4+ {[%clk 0:00:07.2]} 0-1